[Event "Azerbaijan-ch 1st League 2025"]
[Site "Baku"]
[Date "2025.01.11"]
[Round "6.16"]
[White "Baghirov, Orkhan"]
[Black "Halafov, Ilgar"]
[Result "1-0"]
[Annotator "NA RC"]
[ECO "E62"]
[WhiteElo "1989"]
[BlackElo "1990"]
[PlyCount "191"]
[EventDate "2025.01.05"]
[EventType "swiss"]
[EventCountry "AZE"]
[SourceTitle "playchess.com"]
[Source "ChessBase"]
[SourceQuality "1"]
[TimeControl "40/5400+30:1800+30"]

1. d4 {[%emt 0:00:26]} Nf6 {[%emt 0:00:07]} 2. c4 {[%emt 0:00:05]} g6 {[%emt 0:00:09]} 3. g3 {[%emt 0:00:04]} Bg7 {[%emt 0:00:07]} 4. Bg2 {[%emt 0:00:02]} O-O {[%emt 0:00:23]} 5. Nc3 {[%emt 0:00:36]} d6 {[%emt 0:00:10]} 6. Nf3 {[%emt 0:00:06]} Nc6 {[%emt 0:00:17]} 7. O-O {[%emt 0:00:06]} e5 {[%emt 0:02:03]} 8. dxe5 {[%emt 0:02:03]} dxe5 {[%emt 0:00:39]} 9. Qb3 {[%emt 0:02:41]} Nd4 {[%emt 0:05:53]} 10. Nxd4 {[%emt 0:00:08]} exd4 {[%emt 0:00:06]} 11. Rd1 {[%emt 0:03:42]} c5 {[%emt 0:01:39]} 12. Bg5 {[%emt 0:10:47]} h6 {[%emt 0:02:24]} 13. Bxf6 {[%emt 0:00:21]} Qxf6 {[%emt 0:01:53]} 14. Na4 {[%emt 0:09:23]} Qe7 {[%emt 0:03:26]} 15. Qa3 {[%emt 0:07:15]} (15. Qb5 $11) 15... Qxe2 {[%emt 0:03:20]} (15... Bg4 $1 $15 16. Qxc5 Qxe2) 16. Re1 $15 {[%emt 0:08:58]} (16. Nxc5 $11 Qxc4 17. Nxb7) 16... Qxc4 {[%emt 0:17:02]} 17. Nxc5 {[%emt 0:02:16]} Qb5 {[%emt 0:05:28]} 18. Bf1 {[%emt 0:04:04]} Qb6 {[%emt 0:01:43]} 19. Na4 {[%emt 0:02:28]} Qa5 {[%emt 0:03:21]} 20. b4 {[%emt 0:00:23]} Qd8 {[%emt 0:00:14]} 21. Bg2 {[%emt 0:01:04]} Rb8 {[%emt 0:04:39]} 22. Nc5 {[%emt 0:00:33]} a6 {[%emt 0:03:41]} 23. Rad1 {[%emt 0:02:04]} Qb6 {[%emt 0:03:46]} 24. h3 {[%emt 0:00:58]} h5 {[%emt 0:00:13]} 25. Kh2 {[%emt 0:02:41]} Rd8 {[%emt 0:02:30]} 26. Qb3 {[%emt 0:04:35]} Qf6 {[%emt 0:05:36]} 27. Qa4 {[%emt 0:04:19]} Be6 {[%emt 0:17:33]} 28. Kg1 {[%emt 0:02:05]} Bc8 {[%emt 0:06:18]} 29. Re8+ {[%emt 0:01:00]} Bf8 {[%emt 0:04:11]} 30. Rde1 {[%emt 0:06:46]} Bf5 {[%emt 0:03:15]} 31. Rxd8 {[%emt 0:11:03]} Qxd8 {[%emt 0:01:22]} 32. Rd1 {[%emt 0:00:51]} Qb6 {[%emt 0:03:02]} 33. Nd7 {[%emt 0:03:01]} Bxd7 {[%emt 0:00:00]} 34. Qxd7 {[%emt 0:00:02]} Bg7 {[%emt 0:00:00]} 35. Bd5 {[%emt 0:00:36]} Rf8 {[%emt 0:00:38]} 36. a3 {[%emt 0:02:55]} a5 {[%emt 0:00:32]} 37. b5 {[%emt 0:00:51]} Qc5 {[%emt 0:00:31]} 38. Rd3 {[%emt 0:01:38]} b6 {[%emt 0:00:30]} 39. Rf3 {[%emt 0:00:20]} Kh7 {[%emt 0:00:40]} 40. Bxf7 {[%emt 0:00:00]} Qc1+ {[%emt 0:00:00]} 41. Kg2 {[%emt 0:02:04]} Qc2 {[%emt 0:07:06]} 42. g4 {[%emt 0:10:44]} Qe4 {[%emt 0:11:07]} 43. gxh5 {[%emt 0:03:17]} gxh5 {[%emt 0:00:02]} 44. Bxh5 {[%emt 0:01:28]} Rxf3 {[%emt 0:01:03]} 45. Bxf3 {[%emt 0:00:06]} Qg6+ {[%emt 0:00:51]} 46. Bg4 {[%emt 0:11:24]} Qe4+ {[%emt 0:01:22]} 47. Kh2 {[%emt 0:00:48]} Qe5+ {[%emt 0:01:42]} 48. Kg1 {[%emt 0:00:58]} Qe1+ {[%emt 0:00:23]} 49. Kg2 {[%emt 0:00:02]} Qe4+ {[%emt 0:00:09]} 50. Kg3 {[%emt 0:03:23]} Qe5+ {[%emt 0:02:28]} 51. Kf3 {[%emt 0:00:56]} Kg6 {[%emt 0:04:21]} 52. Qc6+ {[%emt 0:01:16]} Qf6+ {[%emt 0:01:30]} 53. Ke4 {[%emt 0:00:57]} Kh7 {[%emt 0:01:01]} 54. Bf5+ {[%emt 0:01:19]} Kh6 {[%emt 0:01:47]} 55. f4 {[%emt 0:01:39]} Kh5 {[%emt 0:00:49]} 56. Bg4+ {[%emt 0:02:13]} Kh6 {[%emt 0:00:53]} 57. a4 {[%emt 0:00:26]} Kh7 {[%emt 0:00:15]} 58. Bf5+ {[%emt 0:00:04]} Kh6 {[%emt 0:00:22]} 59. Kd5 {[%emt 0:01:13]} d3 {[%emt 0:00:34]} 60. Bxd3 {[%emt 0:00:39]} Bh8 {[%emt 0:00:50]} 61. Be4 {[%emt 0:01:10]} Bg7 {[%emt 0:01:02]} 62. Qe8 {[%emt 0:00:43]} Bf8 {[%emt 0:01:13]} 63. Qe5 {[%emt 0:01:14]} Be7 {[%emt 0:00:59]} 64. Bf5 {[%emt 0:00:36]} Kg7 {[%emt 0:00:25]} 65. Be6 {[%emt 0:00:25]} Kg6 {[%emt 0:00:37]} 66. Kc6 {[%emt 0:00:36]} Bc5 {[%emt 0:00:15]} 67. f5+ {[%emt 0:00:24]} Kg5 {[%emt 0:00:55]} 68. Qg3+ {[%emt 0:00:14]} Kh6 {[%emt 0:00:16]} 69. Qg4 {[%emt 0:00:44]} Be3 {[%emt 0:00:23]} 70. Qe4 {[%emt 0:00:34]} Bc5 {[%emt 0:00:26]} 71. Kb7 {[%emt 0:00:09]} Qe7+ {[%emt 0:00:34]} 72. Ka6 {[%emt 0:00:19]} Qf6 {[%emt 0:00:24]} 73. Qg4 {[%emt 0:00:42]} Qg5 {[%emt 0:00:46]} 74. Qf3 {[%emt 0:00:25]} Qf6 {[%emt 0:00:14]} 75. Qc6 {[%emt 0:00:24]} Kg7 {[%emt 0:00:47]} 76. Qc7+ {[%emt 0:00:21]} Kh6 {[%emt 0:00:05]} 77. Ka7 {[%emt 0:00:42]} Be3 {[%emt 0:00:42]} 78. Qg3 {[%emt 0:00:55]} Bc5 {[%emt 0:00:09]} 79. Qf4+ {[%emt 0:00:08]} Qg5 {[%emt 0:00:20]} 80. Qc7 {[%emt 0:00:15]} Qf6 {[%emt 0:00:16]} 81. Qxc5 {[%emt 0:01:13]} bxc5 {[%emt 0:00:02]} 82. b6 {[%emt 0:00:00]} Qd8 {[%emt 0:00:51]} 83. b7 {[%emt 0:00:21]} Qc7 {[%emt 0:00:01]} 84. Bd5 {[%emt 0:00:56]} c4 {[%emt 0:01:27]} 85. Bxc4 {[%emt 0:00:41]} Qxc4 {[%emt 0:01:14]} 86. b8=Q {[%emt 0:00:02]} Qxa4 {[%emt 0:00:17]} 87. Qd6+ {[%emt 0:00:19]} Kh7 {[%emt 0:00:28]} 88. Qe7+ {[%emt 0:00:31]} Kg8 {[%emt 0:00:42]} 89. Qe6+ {[%emt 0:00:38]} Kf8 {[%emt 0:00:23]} 90. Qf6+ {[%emt 0:00:38]} Kg8 {[%emt 0:00:21]} 91. Qe6+ {[%emt 0:00:00]} Kf8 {[%emt 0:00:01]} 92. Qd6+ {[%emt 0:00:48]} Kg8 {[%emt 0:01:07]} 93. f6 {[%emt 0:00:31]} Qb3 {[%emt 0:00:45]} 94. Qd8+ {[%emt 0:00:38]} Kh7 {[%emt 0:00:30]} 95. Qe7+ {[%emt 0:00:09]} Kh6 {[%emt 0:00:05]} 96. f7 {[%emt 0:00:13]} 1-0

[Event "Azerbaijan-ch 1st League 2025"]
[Site "Baku"]
[Date "2025.01.11"]
[Round "6.17"]
[White "Gulumov, Muthat"]
[Black "Imranli, Kenan"]
[Result "1-0"]
[Annotator "NA RC"]
[ECO "B11"]
[WhiteElo "2054"]
[BlackElo "1758"]
[PlyCount "121"]
[EventDate "2025.01.05"]
[EventType "swiss"]
[EventCountry "AZE"]
[SourceTitle "playchess.com"]
[Source "ChessBase"]
[SourceQuality "1"]
[TimeControl "40/5400+30:1800+30"]

1. e4 {[%emt 0:00:03]} c6 {[%emt 0:02:14]} 2. Nc3 {[%emt 0:00:11]} d5 {[%emt 0:00:06]} 3. Nf3 {[%emt 0:00:03]} dxe4 {[%emt 0:00:12]} 4. Nxe4 {[%emt 0:00:04]} Nf6 {[%emt 0:00:10]} 5. Qe2 {[%emt 0:00:06]} Nxe4 {[%emt 0:00:06]} 6. Qxe4 {[%emt 0:00:02]} Qa5 {[%emt 0:00:10] B11: Caro-Kann: Two Knights Variation.} 7. b4 {[%emt 0:00:10]} Qf5 {[%emt 0:00:05]} 8. Qe3 {[%emt 0:00:04]} Qxc2 {[%emt 0:04:59]} 9. Bd3 {[%emt 0:00:16]} Qa4 {[%emt 0:00:06]} 10. O-O {[%emt 0:00:21]} Nd7 {[%emt 0:04:50]} 11. a3 {[%emt 0:00:26]} Nf6 {[%emt 0:00:57]} 12. Ne5 {[%emt 0:03:00]} g6 {[%emt 0:04:32]} 13. Bc4 {[%emt 0:02:12]} Nd5 {[%emt 0:00:56]} 14. Qf3 {[%emt 0:00:39]} Be6 {[%emt 0:01:22]} 15. Bb2 {[%emt 0:02:48]} Bg7 {[%emt 0:05:07]} 16. Bb3 {[%emt 0:00:37]} Qa6 {[%emt 0:01:48]} 17. a4 {[%emt 0:06:42]} O-O {[%emt 0:03:48]} 18. b5 $1 {[%emt 0:07:09]} Qa5 {[%emt 0:04:23]} (18... Qb6 $15) 19. bxc6 {[%emt 0:04:02]} Qxd2 $16 {[%emt 0:01:06]} (19... Bxe5 $11 {remains equal.} 20. Bxe5 bxc6) 20. cxb7 {[%emt 0:07:55]} Rab8 {[%emt 0:01:08]} 21. Rab1 {[%emt 0:00:46]} Bxe5 {[%emt 0:06:54]} 22. Bxe5 {[%emt 0:00:24]} Rxb7 {[%emt 0:00:44]} 23. Rbd1 {[%emt 0:01:45]} Rxb3 {[%emt 0:01:38]} 24. Qxb3 {[%emt 0:00:06]} Qa5 {[%emt 0:00:07]} 25. Qa3 {[%emt 0:03:59]} Nb6 {[%emt 0:01:57]} 26. Bc3 {[%emt 0:00:38]} Qg5 {[%emt 0:02:55]} 27. f4 {[%emt 0:00:42]} Qf5 {[%emt 0:01:02]} 28. Bd4 {[%emt 0:09:33]} Bc4 {[%emt 0:06:05]} 29. Rfe1 {[%emt 0:01:26]} Nd5 {[%emt 0:02:23]} 30. Rc1 {[%emt 0:03:46]} Ba6 {[%emt 0:04:30]} 31. Re5 {[%emt 0:02:03]} Qd7 {[%emt 0:01:13]} 32. Bc5 {[%emt 0:15:05]} Nxf4 {[%emt 0:01:41]} 33. Rxe7 {[%emt 0:00:45]} Qd2 {[%emt 0:02:40]} 34. Bf2 {[%emt 0:00:29]} Ne2+ {[%emt 0:04:37]} 35. Rxe2 {[%emt 0:00:10]} Qxe2 {[%emt 0:00:17]} 36. Re1 {[%emt 0:00:31]} Qg4 {[%emt 0:01:31]} 37. Qe7 {[%emt 0:12:21]} Qxa4 {[%emt 0:03:34]} 38. Qf6 {[%emt 0:00:53]} Qa5 {[%emt 0:03:45]} 39. Ra1 {[%emt 0:00:28]} Qf5 {[%emt 0:00:08]} 40. Qxf5 {[%emt 0:00:00]} gxf5 {[%emt 0:00:00]} 41. Rxa6 {[%emt 0:00:12]} Rd8 {[%emt 0:00:51]} 42. g3 {[%emt 0:00:14]} Kg7 {[%emt 0:00:47]} 43. Rxa7 {[%emt 0:00:07]} Rd3 {[%emt 0:00:39]} 44. Kg2 {[%emt 0:00:16]} Kg6 {[%emt 0:00:30]} 45. Ra6+ {[%emt 0:00:30]} f6 {[%emt 0:00:14]} 46. Re6 {[%emt 0:00:06]} h5 {[%emt 0:00:54]} 47. Re3 {[%emt 0:00:15]} Rd4 {[%emt 0:00:29]} 48. Kf3 {[%emt 0:00:19]} Ra4 {[%emt 0:00:43]} 49. Rd3 {[%emt 0:00:15]} Rc4 {[%emt 0:00:38]} 50. Be3 {[%emt 0:00:35]} Rc2 {[%emt 0:00:33]} 51. h4 {[%emt 0:00:12]} Rc4 {[%emt 0:00:12]} 52. Rd6 {[%emt 0:00:17]} Rc3 {[%emt 0:00:56]} 53. Kf4 {[%emt 0:00:09]} Rc8 {[%emt 0:00:52]} 54. Bd4 {[%emt 0:00:09]} Rf8 {[%emt 0:00:19]} 55. Kf3 {[%emt 0:00:05]} Rf7 {[%emt 0:00:07]} 56. Rxf6+ {[%emt 0:00:11]} Rxf6 {[%emt 0:00:08]} 57. Bxf6 {[%emt 0:00:04]} Kxf6 {[%emt 0:00:06]} 58. Kf4 {[%emt 0:00:01]} Ke6 {[%emt 0:01:03]} 59. Kg5 {[%emt 0:00:10]} Ke5 {[%emt 0:00:04]} 60. Kxh5 {[%emt 0:00:05]} Kf6 {[%emt 0:00:33]} 61. Kh6 {[%emt 0:00:09]} 1-0

[Event "Azerbaijan-ch 1st League 2025"]
[Site "Baku"]
[Date "2025.01.12"]
[Round "7.1"]
[White "Ahmad, Khagan"]
[Black "Ibrahimli, Murad"]
[Result "0-1"]
[Annotator "TA"]
[ECO "D93"]
[WhiteElo "2406"]
[BlackElo "2415"]
[PlyCount "72"]
[EventDate "2025.01.05"]
[EventType "swiss"]
[EventCountry "AZE"]
[SourceTitle "playchess.com"]
[Source "ChessBase"]
[SourceQuality "1"]
[TimeControl "40/5400+30:1800+30"]

{[%evp 12,72,13,22,58,57,52,53,63,48,71,45,59,34,65,85,77,80,95,25,22,18,41,35,44,12,18,10,12,8,23,12,12,6,7,0,0,0,23,0,21,24,20,26,69,47,39,10,7,-4,-2,-22,-12,-183,-71,-195,-201,-220,-119,-320,-327,-565,-552]} 1. Nf3 {[%emt 0:00:21]} d5 {[%emt 0:02:40]} 2. d4 {[%emt 0:00:09]} c6 {[%emt 0:03:10]} 3. c4 {[%emt 0:00:55]} Nf6 {[%emt 0:00:46][%cal Bg8f6,Bf6e4,Be4c3][%mdl 32]} 4. Nc3 {[%emt 0:00:11]} g6 {[%emt 0:00:51]} 5. Bf4 {[%emt 0:09:32]} Bg7 {[%emt 0:13:12]} 6. e3 {[%emt 0:00:28]} O-O {[%emt 0:00:39]} 7. Be2 {[%emt 0:00:50][%cal Bf1e2,Be2c4,Bc4b3][%mdl 32]} Ne4 {[%emt 0:01:12]} 8. O-O {[%emt 0:03:05]} Nxc3 {[%emt 0:00:20]} 9. bxc3 {[%emt 0:00:04]} dxc4 {[%emt 0:00:15]} 10. Bxc4 {[%emt 0:00:43]} Nd7 {[%emt 0:00:12]} 11. e4 {[%emt 0:00:56]} Qa5 {[%emt 0:00:47]} 12. Qd2 {[%emt 0:01:50]} Nb6 {[%emt 0:03:56]} 13. Bb3 {[%emt 0:00:09]} c5 {[%emt 0:00:05]} 14. Bh6 {[%emt 0:02:32]} cxd4 {[%emt 0:02:06]} 15. cxd4 {[%emt 0:02:10]} (15. Bxg7 $16 Kxg7 16. Qxd4+ (16. Nxd4 Bd7 $11) 16... Kg8 17. e5) 15... Qxd2 $11 {[%emt 0:00:14]} 16. Bxd2 {[%emt 0:00:05]} Bg4 {[%emt 0:00:04]} 17. Be3 {[%emt 0:07:33]} Rac8 {[%emt 0:04:06]} 18. Rac1 {[%emt 0:03:11]} Bd7 $1 {[%emt 0:15:31]} 19. d5 {[%emt 0:06:46]} Bb5 {[%emt 0:01:18]} 20. Rfd1 {[%emt 0:01:35]} Bb2 {[%emt 0:25:07]} 21. Rxc8 {[%emt 0:07:39]} Rxc8 {[%emt 0:00:06]} 22. h4 {[%emt 0:00:31]} Ba3 {[%emt 0:04:57]} 23. h5 {[%emt 0:03:27]} gxh5 {[%emt 0:04:11]} 24. Nd4 {[%emt 0:06:44] Repels Be2} Be8 {[%emt 0:04:57]} 25. Bg5 {[%emt 0:01:51]} h6 {[%emt 0:03:05]} 26. Bxh6 {[%emt 0:01:02]} a5 {[%emt 0:02:16]} 27. Rd3 {[%emt 0:03:26]} Kh7 {[%emt 0:00:15]} 28. Bd2 {[%emt 0:01:27]} (28. Nf5 $5) 28... Nc4 {[%emt 0:02:09]} 29. Bf4 {[%emt 0:11:56]} (29. Rc3 $5 b5 30. Bxc4 Rxc4 31. Rxc4 (31. Rxa3 Rxd4 32. Bxa5 Rxe4 $11) 31... bxc4 32. Bxa5 $11) 29... f6 {[%emt 0:04:32]} 30. Rg3 {[%emt 0:17:37]} Bd6 {[%emt 0:00:55]} 31. Bxd6 {[%emt 0:04:51]} Nxd6 {[%emt 0:00:01]} 32. Ne6 $2 {[%emt 0:00:04] [#]} (32. Bc2 $11 {and White stays safe.} Bg6 33. Bd3 Rc1+ (33... Bxe4 34. Bxe4+ Nxe4 35. Re3 $11) (33... Nxe4 34. Rxg6 Kxg6 35. Bxe4+ Kg7 36. Nc2 $14) 34. Kh2 Bxe4 (34... Nxe4 35. Rxg6 Kxg6 36. Bxe4+ Kf7 37. Nf5 $16) 35. Bxe4+ Nxe4 36. Re3 Nxf2 37. Rxe7+ Kg6 38. Nf3) 32... Kh8 {[%emt 0:01:18]} (32... a4 $1 $19 {[%cal Ra4b3]} 33. Rg7+ Kh6 34. Bxa4 (34. Bd1 $2 Rc1 $19) 34... Bxa4 35. Rxe7 Nxe4 36. Rxb7 Rc1+ 37. Kh2 Nxf2) 33. e5 {[%emt 0:01:03]} fxe5 $19 {[%emt 0:00:12] Threatens to win with ...a4.} 34. Kh2 {[%emt 0:00:06]} Rc1 {[%emt 0:00:29]} (34... a4 $19 35. Bd1 Rc1 36. Bxh5 Bxh5) 35. a3 $2 {[%emt 0:00:58]} (35. a4 $17 {was necessary.}) 35... a4 {[%emt 0:00:09]} 36. Ba2 $2 {[%emt 0:00:05]} (36. Bxa4 {is the only way for White.} Bxa4 37. Rg5) 36... Ra1 {[%emt 0:00:20]} 0-1

[Event "Azerbaijan-ch 1st League 2025"]
[Site "Baku"]
[Date "2025.01.12"]
[Round "7.2"]
[White "Atakishiyev, Elmar"]
[Black "Suleymanli, Suleyman"]
[Result "1/2-1/2"]
[Annotator "RC"]
[ECO "C14"]
[WhiteElo "2408"]
[BlackElo "2280"]
[PlyCount "259"]
[EventDate "2025.01.05"]
[EventType "swiss"]
[EventCountry "AZE"]
[SourceTitle "playchess.com"]
[Source "ChessBase"]
[SourceQuality "1"]
[TimeControl "40/5400+30:1800+30"]

1. e4 {[%emt 0:10:06]} e6 {[%emt 0:00:06]} 2. d4 {[%emt 0:00:17]} d5 {[%emt 0:00:05]} 3. Nc3 {[%emt 0:00:10]} Nf6 {[%emt 0:00:33]} 4. Bg5 {[%emt 0:00:12]} Be7 {[%emt 0:00:03]} 5. e5 {[%emt 0:00:09]} Nfd7 {[%emt 0:00:01]} 6. h4 {[%emt 0:00:16]} Bxg5 {[%emt 0:00:02]} 7. hxg5 {[%emt 0:00:12]} Qxg5 {[%emt 0:00:02]} 8. Nh3 {[%emt 0:00:12]} Qh4 {[%emt 0:00:01]} 9. g3 {[%emt 0:00:13]} Qe7 {[%emt 0:00:44]} 10. Qg4 {[%emt 0:00:15]} g6 {[%emt 0:01:25]} 11. Ng5 {[%emt 0:00:09]} h6 {[%emt 0:06:06]} 12. O-O-O {[%emt 0:02:53]} Nc6 {[%emt 0:01:18]} 13. Qf4 {[%emt 0:11:48]} Nf8 {[%emt 0:00:34]} 14. Nf3 {[%emt 0:00:07]} g5 {[%emt 0:33:25]} 15. Qe3 {[%emt 0:02:31]} Ng6 {[%emt 0:02:11]} 16. Bd3 {[%emt 0:00:26]} Bd7 {[%emt 0:00:17]} 17. Bxg6 {[%emt 0:01:17]} fxg6 {[%emt 0:00:08]} 18. Qxg5 {[%emt 0:00:10]} Qxg5+ {[%emt 0:00:55]} 19. Nxg5 {[%emt 0:00:11]} Ke7 {[%emt 0:01:07]} 20. Nh3 {[%emt 0:02:53]} Raf8 {[%emt 0:05:47]} 21. f4 {[%emt 0:01:22]} g5 {[%emt 0:01:03]} 22. Ne2 {[%emt 0:06:32]} Be8 {[%emt 0:13:35]} 23. Rdg1 {[%emt 0:08:03]} Bh5 {[%emt 0:01:18]} 24. g4 {[%emt 0:00:33]} Bg6 {[%emt 0:00:01]} 25. c3 {[%emt 0:05:05]} Bd3 {[%emt 0:06:45]} 26. Kd2 {[%emt 0:00:42]} Bxe2 {[%emt 0:01:11]} 27. Kxe2 {[%emt 0:00:04]} gxf4 {[%emt 0:00:08]} 28. Rf1 {[%emt 0:01:47]} Rhg8 {[%emt 0:04:19]} 29. Rhg1 {[%emt 0:00:31]} f3+ {[%emt 0:01:23]} 30. Rxf3 {[%emt 0:08:08]} Rxf3 {[%emt 0:00:07]} 31. Kxf3 {[%emt 0:00:04]} Nd8 {[%emt 0:00:02]} 32. Nf4 {[%emt 0:02:03]} Nf7 {[%emt 0:00:04]} 33. Kg3 {[%emt 0:01:02]} Ng5 {[%emt 0:02:35]} 34. Rf1 {[%emt 0:00:52]} Rg7 {[%emt 0:02:10]} 35. Rh1 {[%emt 0:06:42]} Ne4+ {[%emt 0:02:18]} 36. Kf3 {[%emt 0:01:18]} Ng5+ {[%emt 0:00:04]} 37. Ke3 {[%emt 0:00:40]} Nf7 {[%emt 0:00:02]} 38. Rg1 {[%emt 0:01:32]} Rg8 {[%emt 0:06:27]} 39. Nh5 {[%emt 0:01:54]} c5 {[%emt 0:00:30]} 40. Nf6 {[%emt 0:00:00]} Rc8 {[%emt 0:00:00]} 41. Kd3 {[%emt 0:02:36]} cxd4 {[%emt 0:02:47]} 42. cxd4 {[%emt 0:00:05]} Ng5 {[%emt 0:00:23]} 43. Rh1 {[%emt 0:00:28]} Nf7 {[%emt 0:00:07]} 44. Rf1 {[%emt 0:00:26]} Ng5 {[%emt 0:00:43]} 45. Rh1 {[%emt 0:01:55]} Nf7 {[%emt 0:00:06]} 46. b3 {[%emt 0:00:39]} a5 {[%emt 0:01:29]} 47. Kd2 {[%emt 0:00:24]} b5 {[%emt 0:01:41]} 48. a3 {[%emt 0:01:06]} Rc7 {[%emt 0:02:15]} 49. Rh3 {[%emt 0:05:14]} b4 {[%emt 0:03:31]} 50. axb4 {[%emt 0:07:13]} axb4 {[%emt 0:00:12]} 51. Rh1 {[%emt 0:00:38]} Rc3 {[%emt 0:01:01]} 52. Ra1 {[%emt 0:00:51]} Ng5 {[%emt 0:00:33]} 53. Ra7+ {[%emt 0:02:33]} Kd8 {[%emt 0:01:24]} 54. Ng8 {[%emt 0:03:11]} Nf3+ {[%emt 0:00:34]} 55. Kd1 {[%emt 0:00:35]} Nxd4 {[%emt 0:00:58]} 56. Nxh6 {[%emt 0:01:05]} Rxb3 {[%emt 0:03:55]} 57. Nf7+ {[%emt 0:08:53]} Ke8 {[%emt 0:00:08]} 58. g5 {[%emt 0:06:06]} Rg3 {[%emt 0:01:17]} 59. Nd6+ {[%emt 0:00:50]} Kf8 {[%emt 0:00:36]} 60. Rf7+ {[%emt 0:00:50]} Kg8 {[%emt 0:00:11]} 61. Rb7 {[%emt 0:00:15]} Rxg5 {[%emt 0:05:36]} 62. Rxb4 {[%emt 0:01:31]} Nc6 {[%emt 0:01:38]} 63. Rb7 {[%emt 0:01:40]} Rg7 {[%emt 0:00:52]} 64. Rb6 {[%emt 0:01:00]} Nxe5 {[%emt 0:00:51]} 65. Rb8+ {[%emt 0:00:31]} Kh7 {[%emt 0:00:03]} 66. Re8 {[%emt 0:00:37]} Rg6 {[%emt 0:00:19]} 67. Re7+ {[%emt 0:02:14]} Kh6 {[%emt 0:00:46]} 68. Nb5 {[%emt 0:07:46]} Nc6 {[%emt 0:04:14]} 69. Rc7 {[%emt 0:00:23]} e5 {[%emt 0:04:43]} 70. Nc3 {[%emt 0:01:03]} d4 {[%emt 0:01:31]} 71. Ne4 {[%emt 0:00:05]} Kh5 {[%emt 0:01:10]} 72. Ke2 {[%emt 0:00:11]} Kg4 {[%emt 0:00:19]} 73. Rf7 {[%emt 0:00:05]} Nd8 {[%emt 0:00:41]} 74. Nf2+ {[%emt 0:00:21]} Kg5 {[%emt 0:02:16]} 75. Ne4+ {[%emt 0:00:12]} Kh6 {[%emt 0:00:16]} 76. Rf5 {[%emt 0:01:02]} Re6 {[%emt 0:00:58]} 77. Ng5 {[%emt 0:01:26]} Re7 {[%emt 0:00:54]} 78. Nf3 {[%emt 0:01:08]} Nf7 {[%emt 0:00:01]} 79. Kd3 {[%emt 0:01:42]} Kg6 {[%emt 0:00:30]} 80. Nh4+ {[%emt 0:00:04]} Kg7 {[%emt 0:00:05]} 81. Nf3 {[%emt 0:00:21]} Re6 {[%emt 0:01:01]} 82. Nxe5 {[%emt 0:00:30]} Nxe5+ {[%emt 0:00:11]} 83. Kxd4 {[%emt 0:00:03]} Nf7 {[%emt 0:00:07]} 84. Rf1 {[%emt 0:00:18]} Kf8 {[%emt 0:00:09]} 85. Rf3 {[%emt 0:00:20]} Rd6+ {[%emt 0:00:14]} 86. Kc5 {[%emt 0:00:07]} Rd1 {[%emt 0:00:02]} 87. Rf2 {[%emt 0:00:39]} Ke7 {[%emt 0:00:06]} 88. Re2+ {[%emt 0:00:25]} Kf6 {[%emt 0:00:01]} 89. Rf2+ {[%emt 0:00:12]} Ke6 {[%emt 0:00:01]} 90. Ra2 {[%emt 0:00:37]} Rd5+ {[%emt 0:00:07]} 91. Kb4 {[%emt 0:00:08]} Ne5 {[%emt 0:00:36]} 92. Rh2 {[%emt 0:00:56]} Rd4+ {[%emt 0:00:06]} 93. Kb5 {[%emt 0:00:14]} Rd1 {[%emt 0:00:11]} 94. Rh8 {[%emt 0:00:15]} Rc1 {[%emt 0:00:10]} 95. Re8+ {[%emt 0:00:19]} Kd6 {[%emt 0:00:06]} 96. Rd8+ {[%emt 0:00:06]} Nd7 {[%emt 0:00:02]} 97. Kb4 {[%emt 0:00:18]} Rc7 {[%emt 0:00:14]} 98. Kb5 {[%emt 0:00:33]} Ke5 {[%emt 0:01:56]} 99. Kb4 {[%emt 0:00:36]} Nf6 {[%emt 0:01:08]} 100. Kb5 {[%emt 0:00:30]} Rc1 {[%emt 0:00:43]} 101. Rh8 {[%emt 0:00:57]} Kd4 {[%emt 0:00:33]} 102. Rh6 {[%emt 0:00:26]} Rc5+ {[%emt 0:00:17]} 103. Ka6 {[%emt 0:00:45]} Rf5 {[%emt 0:02:21]} 104. Rh1 {[%emt 0:02:20]} Nd5 {[%emt 0:00:25]} 105. Rd1+ {[%emt 0:00:22]} Kc5 {[%emt 0:00:08]} 106. Rc1+ {[%emt 0:00:06]} Kd6 {[%emt 0:00:01]} 107. Kb5 {[%emt 0:01:08]} Nf4+ {[%emt 0:01:03]} 108. Kb6 {[%emt 0:00:40]} Rf8 {[%emt 0:00:30]} 109. Rc6+ {[%emt 0:00:09]} Kd5 {[%emt 0:00:00]} 110. Rc5+ {[%emt 0:00:15]} Kd4 {[%emt 0:00:05]} 111. Rc1 {[%emt 0:01:24]} Nd5+ {[%emt 0:00:08]} 112. Kb7 {[%emt 0:00:14]} Rf7+ {[%emt 0:00:02]} 113. Ka6 {[%emt 0:00:23]} Rf6+ {[%emt 0:00:09]} 114. Ka7 {[%emt 0:00:31]} Ke5 {[%emt 0:00:45]} 115. Rd1 {[%emt 0:01:07]} Kd6 {[%emt 0:00:29]} 116. Rc1 {[%emt 0:00:57]} Rf2 {[%emt 0:01:45]} 117. Ka6 {[%emt 0:00:03]} Rb2 {[%emt 0:00:06]} 118. Ka5 {[%emt 0:00:04]} Nb6 {[%emt 0:00:39]} 119. Rh1 {[%emt 0:01:03]} Kc5 {[%emt 0:01:38]} 120. Rh5+ {[%emt 0:00:39]} Nd5 {[%emt 0:00:06]} 121. Ka4 {[%emt 0:00:11]} Rb8 {[%emt 0:00:42]} 122. Ka3 {[%emt 0:00:12]} Rb7 {[%emt 0:00:55]} 123. Ka2 {[%emt 0:01:08]} Kc4 {[%emt 0:00:14]} 124. Rh4+ {[%emt 0:00:09]} Kd3 {[%emt 0:00:05]} 125. Rh3+ {[%emt 0:00:05]} Ne3 {[%emt 0:00:07]} 126. Ka3 {[%emt 0:00:20]} Kd4 {[%emt 0:00:19]} 127. Ka4 {[%emt 0:00:25]} Rb1 {[%emt 0:00:58]} 128. Rh4+ {[%emt 0:00:18]} Kc5 {[%emt 0:00:07]} 129. Rh5+ {[%emt 0:00:14]} Nd5 {[%emt 0:00:01]} 130. Ka3 {[%emt 0:00:01]} 1/2-1/2

[Event "Azerbaijan-ch 1st League 2025"]
[Site "Baku"]
[Date "2025.01.12"]
[Round "7.3"]
[White "Hamidov, Allahverdi"]
[Black "Aslanov, Umid"]
[Result "1/2-1/2"]
[Annotator "RC"]
[ECO "E48"]
[WhiteElo "2200"]
[BlackElo "2250"]
[PlyCount "64"]
[EventDate "2025.01.05"]
[EventType "swiss"]
[EventCountry "AZE"]
[SourceTitle "playchess.com"]
[Source "ChessBase"]
[SourceQuality "1"]
[TimeControl "40/5400+30:1800+30"]

1. d4 {[%emt 0:00:01]} Nf6 {[%emt 0:00:11]} 2. c4 {[%emt 0:00:05]} e6 {[%emt 0:00:04]} 3. Nc3 {[%emt 0:00:05]} Bb4 {[%emt 0:00:10]} 4. e3 {[%emt 0:00:07]} O-O {[%emt 0:00:13]} 5. Bd3 {[%emt 0:00:16]} c5 {[%emt 0:00:14]} 6. Nge2 {[%emt 0:01:30]} cxd4 {[%emt 0:01:56]} 7. exd4 {[%emt 0:00:06]} d5 {[%emt 0:00:05]} 8. cxd5 {[%emt 0:00:44]} Nxd5 {[%emt 0:00:48]} 9. O-O {[%emt 0:00:12]} Qh4 {[%emt 0:06:16]} 10. Bc2 {[%emt 0:25:05]} Nc6 {[%emt 0:02:47]} 11. Ne4 {[%emt 0:07:35]} Ba5 {[%emt 0:07:37]} 12. Ng5 {[%emt 0:08:22]} h6 {[%emt 0:05:42]} 13. Nf3 {[%emt 0:01:22]} Qd8 {[%emt 0:01:04]} 14. Qd3 {[%emt 0:01:52]} f5 {[%emt 0:03:14]} 15. Bb3 {[%emt 0:02:19]} Bc7 {[%emt 0:05:34]} 16. Nc3 {[%emt 0:01:38]} Nxc3 {[%emt 0:04:22]} 17. bxc3 {[%emt 0:00:25]} Na5 {[%emt 0:01:36]} 18. Re1 {[%emt 0:05:28]} Nxb3 {[%emt 0:00:28]} 19. axb3 {[%emt 0:00:05]} Re8 {[%emt 0:01:20]} 20. Ne5 {[%emt 0:01:08]} Bxe5 {[%emt 0:03:17]} 21. Rxe5 {[%emt 0:00:10]} Bd7 {[%emt 0:02:10]} 22. Bf4 {[%emt 0:00:52]} Bc6 {[%emt 0:04:44]} 23. Rae1 {[%emt 0:01:46]} Qf6 {[%emt 0:01:03]} 24. R5e3 {[%emt 0:03:37]} Qh4 {[%emt 0:05:32]} 25. Bg3 {[%emt 0:02:27]} Qg4 {[%emt 0:00:54]} 26. h3 {[%emt 0:11:55]} Qg6 {[%emt 0:00:56]} 27. Qf1 {[%emt 0:01:57]} Qf7 {[%emt 0:01:37]} 28. Be5 {[%emt 0:03:46]} f4 {[%emt 0:02:29]} 29. Rd3 {[%emt 0:00:40]} b5 {[%emt 0:02:40]} 30. f3 {[%emt 0:02:22]} a5 {[%emt 0:04:18]} 31. Ra1 {[%emt 0:01:47]} Bd5 {[%emt 0:06:37]} 32. Rd2 {[%emt 0:02:27]} Rec8 {[%emt 0:05:08]} 1/2-1/2